Workbook

Sheet факт 2018 (7)
A2: Прогнозные (целевые) значения основных ключевых показателей эффективности за 2018 г.
A4: № | B4: Показатель | C4: Удельный вес | D4: Формула расчета | E4: Прогнозное (целевое) значение за год | F4: в т.ч. | J4: факт за год | K4: Процен тиспонения ИКЭ | L4: Удельный вес
F6: 1 квартал | G6: 2 квартал | H6: 3 квартал | I6: 4 квартал
A7: 1 | B7: 2 | C7: 3 | D7: 4 | E7: 5 | F7: 6 | G7: 7 | H7: 8 | I7: 9
A8: 1 | B8: Рентабельность активов | C8: 0.1 | D8: Прибыль до уплаты налога на прибыль / Средняя стоимость активов | E8: 0.0175 | J8: 0.0037 | K8: =J8/E8*100 -> 21.14285714 | L8: =K8*C8/100 -> 0.02114285714
A9: 2 | B9: Коэффициент абсолютной ликвидности | C9: 0.1 | D9: Денежные средства/Текущие обязательства | E9: 0.2 | J9: 0.0008 | K9: 0.4 | L9: 0.0004
A10: 3 | B10: Коэффициент финансовой независимости | C10: 0.1 | D10: Источники собственных средств /(Обязательства – Долгосрочные обязательства) | E10: 0.5655 | J10: 1.6661 | K10: 294.6242263 | L10: 0.2946242263
A11: 4 | B11: Оборачиваемость кредиторской задолженности в днях | C11: 0.15 | D11: Количество календарных дней в периоде/(Чистая выручка от реализации/Среднее значение кредиторской задолженности) | E11: 90 | J11: 40 | K11: =E11/J11*100 -> 225 | L11: 0.3375
A12: 5 | B12: Оборачиваемость дебиторской задолженности в днях | C12: 0.15 | D12: Количество календарных дней в периоде/(Чистая выручка от реализации/Среднее значение дебиторской задолженности) | E12: 90 | J12: 68 | K12: =E12/J12*100 -> 132.3529412 | L12: 0.1985294118
A13: 6 | B13: Коэффициент покрытия (платежеспособности) | C13: 0.2 | D13: Текущие активы/ (Обязательства – Долгосрочные обязательства) | E13: 1.2931 | J13: 1.6687 | K13: =+J13/E13*100 -> 129.0464775 | L13: 0.2580929549
A14: 7 | B14: Дивидендный выход | C14: 0.1 | D14: Дв = Дао / ЕPS, где:Дао — начисленный дивиденд на одну простую акцию (на основании документов бухгалтерского учета); ЕPS — доход на акцию, определяется по формуле:EPS = (Чп – ДИВприв) / Као, где:Чп — чистая прибыль отчетного периода, (строка 270 «Чистая прибыль (убыток) отчетного периода», графа 5 «Доходы (прибыль)», форма № 2 «Отчет о финансовых результатах»; ДИВприв — начисленные дивиденды по привилегированным акциям (на основании документов бухгалтерского учета); Као — общее число размещенных простых акций (строка 152 «простые», графа 9 «Итого» формы № 5 «Отчет о собственном капитале»). | E14: 0 | L14: 0
B15: Всего: | C15: 1 | L15: =SUM(L8:L14) -> 1.11028945
B17: Генеральный директор АО "4-sonli montaj boshqarmasi"
B18: Начальник ПЭО
A20: Прогнозные (целевые) значения дополнительных ключевых показателей эффективности за 1кв. 2017 г.
A22: № | B22: Показатель | C22: Удельный вес | D22: Формула расчета | E22: Прогнозное (целевое) значение в целом за год | F22: В т.ч. | J22: факт за 1кв.2017 | K22: Процен тиспонения ИКЭ | L22: Удельный вес
F24: 1 квартал | G24: 2 квартал | H24: 3 квартал | I24: 4 квартал
A25: 1 | B25: 2 | C25: 3 | D25: 4 | E25: 5 | F25: 6 | G25: 7 | H25: 8 | I25: 9
A26: 1 | B26: Коэффициент износа основных средств | C26: 0.25 | D26: износ основных средств/ первоначальная стоимость основных средств | E26: 0.5 | F26: Рассчитывается только годовое значение | K26: =J26/E26*100 -> 0 | L26: =K26*C26/100 -> 0
A27: 2 | B27: Коэффициент обновления основных средств | C27: 0.25 | D27: Балансовая стоимость поступивших за период основных средств/Балансовая стоимость всех основных средств на конец периода | E27: 0.1 | K27: 0 | L27: 0
A28: 3 | B28: Производительность труда | C28: 0.25 | D28: Чистая выручка от реализации/Среднесписочная численность сотрудников | E28: 350988 | K28: 0 | L28: 0
A29: 4 | B29: Фондоотдача | C29: 0.25 | D29: Чистая выручка от реализации/Средняя стоимость основных средств за период | E29: 10 | F29: Рассчитывается только годовое значение | K29: 0 | L29: 0
A30: Всего: | C30: 100 | L30: =SUM(L26:L29) -> 0
B33: Руководитель
B34: Экономист

Sheet факт 3кв.2018 (6)
A2: Прогнозные (целевые) значения основных ключевых показателей эффективности за 3 кв. 2018 г.
A4: № | B4: Показатель | C4: Удельный вес | D4: Формула расчета | E4: Прогнозное (целевое) значение за год | F4: в т.ч. | J4: факт за год | K4: Процен тиспонения ИКЭ | L4: Удельный вес
F6: 1 квартал | G6: 2 квартал | H6: 3 квартал | I6: 4 квартал
A7: 1 | B7: 2 | C7: 3 | D7: 4 | E7: 5 | F7: 6 | G7: 7 | H7: 8 | I7: 9
A8: 1 | B8: Рентабельность активов | C8: 0.1 | D8: Прибыль до уплаты налога на прибыль / Средняя стоимость активов | E8: 0.0175 | J8: 0.0133 | K8: =J8/E8*100 -> 76 | L8: =K8*C8/100 -> 0.076
A9: 2 | B9: Коэффициент абсолютной ликвидности | C9: 0.1 | D9: Денежные средства/Текущие обязательства | E9: 0.2 | J9: 0.08949 | K9: 44.745 | L9: 0.044745
A10: 3 | B10: Коэффициент финансовой независимости | C10: 0.1 | D10: Источники собственных средств /(Обязательства – Долгосрочные обязательства) | E10: 0.5655 | J10: 0.842 | K10: 148.8947834 | L10: 0.1488947834
A11: 4 | B11: Оборачиваемость кредиторской задолженности в днях | C11: 0.15 | D11: Количество календарных дней в периоде/(Чистая выручка от реализации/Среднее значение кредиторской задолженности) | E11: 90 | J11: 59 | K11: =E11/J11*100 -> 152.5423729 | L11: 0.2288135593
A12: 5 | B12: Оборачиваемость дебиторской задолженности в днях | C12: 0.15 | D12: Количество календарных дней в периоде/(Чистая выручка от реализации/Среднее значение дебиторской задолженности) | E12: 90 | J12: 105 | K12: =E12/J12*100 -> 85.71428571 | L12: 0.1285714286
A13: 6 | B13: Коэффициент покрытия (платежеспособности) | C13: 0.2 | D13: Текущие активы/ (Обязательства – Долгосрочные обязательства) | E13: 1.2931 | J13: 1.6592 | K13: =+J13/E13*100 -> 128.3118088 | L13: 0.2566236177
A14: 7 | B14: Дивидендный выход | C14: 0.1 | D14: Дв = Дао / ЕPS, где:Дао — начисленный дивиденд на одну простую акцию (на основании документов бухгалтерского учета); ЕPS — доход на акцию, определяется по формуле:EPS = (Чп – ДИВприв) / Као, где:Чп — чистая прибыль отчетного периода, (строка 270 «Чистая прибыль (убыток) отчетного периода», графа 5 «Доходы (прибыль)», форма № 2 «Отчет о финансовых результатах»; ДИВприв — начисленные дивиденды по привилегированным акциям (на основании документов бухгалтерского учета); Као — общее число размещенных простых акций (строка 152 «простые», графа 9 «Итого» формы № 5 «Отчет о собственном капитале»). | E14: 0 | L14: 0
B15: Всего: | C15: 1 | L15: =SUM(L8:L14) -> 0.8836483889
B17: Генеральный директор АО "4-sonli montaj boshqarmasi"
B18: Начальник ПЭО
A20: Прогнозные (целевые) значения дополнительных ключевых показателей эффективности за 1кв. 2017 г.
A22: № | B22: Показатель | C22: Удельный вес | D22: Формула расчета | E22: Прогнозное (целевое) значение в целом за год | F22: В т.ч. | J22: факт за 1кв.2017 | K22: Процен тиспонения ИКЭ | L22: Удельный вес
F24: 1 квартал | G24: 2 квартал | H24: 3 квартал | I24: 4 квартал
A25: 1 | B25: 2 | C25: 3 | D25: 4 | E25: 5 | F25: 6 | G25: 7 | H25: 8 | I25: 9
A26: 1 | B26: Коэффициент износа основных средств | C26: 0.25 | D26: износ основных средств/ первоначальная стоимость основных средств | E26: 0.5 | F26: Рассчитывается только годовое значение | K26: =J26/E26*100 -> 0 | L26: =K26*C26/100 -> 0
A27: 2 | B27: Коэффициент обновления основных средств | C27: 0.25 | D27: Балансовая стоимость поступивших за период основных средств/Балансовая стоимость всех основных средств на конец периода | E27: 0.1 | K27: 0 | L27: 0
A28: 3 | B28: Производительность труда | C28: 0.25 | D28: Чистая выручка от реализации/Среднесписочная численность сотрудников | E28: 350988 | K28: 0 | L28: 0
A29: 4 | B29: Фондоотдача | C29: 0.25 | D29: Чистая выручка от реализации/Средняя стоимость основных средств за период | E29: 10 | F29: Рассчитывается только годовое значение | K29: 0 | L29: 0
A30: Всего: | C30: 100 | L30: =SUM(L26:L29) -> 0
B33: Руководитель
B34: Экономист

Sheet факт 2кв.2018 (5)
A2: Прогнозные (целевые) значения основных ключевых показателей эффективности за 2 кв. 2018 г.
A4: № | B4: Показатель | C4: Удельный вес | D4: Формула расчета | E4: Прогнозное (целевое) значение за год | F4: в т.ч. | J4: факт за год | K4: Процен тиспонения ИКЭ | L4: Удельный вес
F6: 1 квартал | G6: 2 квартал | H6: 3 квартал | I6: 4 квартал
A7: 1 | B7: 2 | C7: 3 | D7: 4 | E7: 5 | F7: 6 | G7: 7 | H7: 8 | I7: 9
A8: 1 | B8: Рентабельность активов | C8: 0.1 | D8: Прибыль до уплаты налога на прибыль / Средняя стоимость активов | E8: 0.0175 | J8: 0.0022 | K8: =J8/E8*100 -> 12.57142857 | L8: =K8*C8/100 -> 0.01257142857
A9: 2 | B9: Коэффициент абсолютной ликвидности | C9: 0.1 | D9: Денежные средства/Текущие обязательства | E9: 0.2 | J9: 0.02372 | K9: 11.86 | L9: =K9*C9/100 -> 0.01186
A10: 3 | B10: Коэффициент финансовой независимости | C10: 0.1 | D10: Источники собственных средств /(Обязательства – Долгосрочные обязательства) | E10: 0.5655 | J10: 0.842 | K10: 148.8947834 | L10: 0.1488947834
A11: 4 | B11: Оборачиваемость кредиторской задолженности в днях | C11: 0.15 | D11: Количество календарных дней в периоде/(Чистая выручка от реализации/Среднее значение кредиторской задолженности) | E11: 90 | J11: 105 | K11: =E11/J11*100 -> 85.71428571 | L11: 0.1285714286
A12: 5 | B12: Оборачиваемость дебиторской задолженности в днях | C12: 0.15 | D12: Количество календарных дней в периоде/(Чистая выручка от реализации/Среднее значение дебиторской задолженности) | E12: 90 | J12: 197 | K12: =E12/J12*100 -> 45.68527919 | L12: 0.06852791878
A13: 6 | B13: Коэффициент покрытия (платежеспособности) | C13: 0.2 | D13: Текущие активы/ (Обязательства – Долгосрочные обязательства) | E13: 1.2931 | J13: 1.6322 | K13: =+J13/E13*100 -> 126.2238033 | L13: 0.2524476065
A14: 7 | B14: Дивидендный выход | C14: 0.1 | D14: Дв = Дао / ЕPS, где:Дао — начисленный дивиденд на одну простую акцию (на основании документов бухгалтерского учета); ЕPS — доход на акцию, определяется по формуле:EPS = (Чп – ДИВприв) / Као, где:Чп — чистая прибыль отчетного периода, (строка 270 «Чистая прибыль (убыток) отчетного периода», графа 5 «Доходы (прибыль)», форма № 2 «Отчет о финансовых результатах»; ДИВприв — начисленные дивиденды по привилегированным акциям (на основании документов бухгалтерского учета); Као — общее число размещенных простых акций (строка 152 «простые», графа 9 «Итого» формы № 5 «Отчет о собственном капитале»). | E14: 0 | L14: 0
B15: Всего: | C15: 1 | L15: =SUM(L8:L14) -> 0.6228731658
B17: Генеральный директор АО "4-sonli montaj boshqarmasi"
B18: Начальник ПЭО
A20: Прогнозные (целевые) значения дополнительных ключевых показателей эффективности за 1кв. 2017 г.
A22: № | B22: Показатель | C22: Удельный вес | D22: Формула расчета | E22: Прогнозное (целевое) значение в целом за год | F22: В т.ч. | J22: факт за 1кв.2017 | K22: Процен тиспонения ИКЭ | L22: Удельный вес
F24: 1 квартал | G24: 2 квартал | H24: 3 квартал | I24: 4 квартал
A25: 1 | B25: 2 | C25: 3 | D25: 4 | E25: 5 | F25: 6 | G25: 7 | H25: 8 | I25: 9
A26: 1 | B26: Коэффициент износа основных средств | C26: 0.25 | D26: износ основных средств/ первоначальная стоимость основных средств | E26: 0.5 | F26: Рассчитывается только годовое значение | K26: =J26/E26*100 -> 0 | L26: =K26*C26/100 -> 0
A27: 2 | B27: Коэффициент обновления основных средств | C27: 0.25 | D27: Балансовая стоимость поступивших за период основных средств/Балансовая стоимость всех основных средств на конец периода | E27: 0.1 | K27: 0 | L27: 0
A28: 3 | B28: Производительность труда | C28: 0.25 | D28: Чистая выручка от реализации/Среднесписочная численность сотрудников | E28: 350988 | K28: 0 | L28: 0
A29: 4 | B29: Фондоотдача | C29: 0.25 | D29: Чистая выручка от реализации/Средняя стоимость основных средств за период | E29: 10 | F29: Рассчитывается только годовое значение | K29: 0 | L29: 0
A30: Всего: | C30: 100 | L30: =SUM(L26:L29) -> 0
B33: Руководитель
B34: Экономист

Sheet факт 1кв.2018 (4)
A2: Прогнозные (целевые) значения основных ключевых показателей эффективности за 1 кв. 2018 г.
A4: № | B4: Показатель | C4: Удельный вес | D4: Формула расчета | E4: Прогнозное (целевое) значение за год | F4: в т.ч. | J4: факт за год | K4: Процен тиспонения ИКЭ | L4: Удельный вес
F6: 1 квартал | G6: 2 квартал | H6: 3 квартал | I6: 4 квартал
A7: 1 | B7: 2 | C7: 3 | D7: 4 | E7: 5 | F7: 6 | G7: 7 | H7: 8 | I7: 9
A8: 1 | B8: Рентабельность активов | C8: 0.1 | D8: Прибыль до уплаты налога на прибыль / Средняя стоимость активов | E8: 0.0175 | J8: 0.0003 | K8: =J8/E8*100 -> 1.714285714 | L8: =K8*C8/100 -> 0.001714285714
A9: 2 | B9: Коэффициент абсолютной ликвидности | C9: 0.1 | D9: Денежные средства/Текущие обязательства | E9: 0.2 | J9: 0.015 | K9: 7.5 | L9: =K9*C9/100 -> 0.0075
A10: 3 | B10: Коэффициент финансовой независимости | C10: 0.1 | D10: Источники собственных средств /(Обязательства – Долгосрочные обязательства) | E10: 0.5655 | J10: 0.878 | K10: 155.2608311 | L10: =K10*C10/100 -> 0.1552608311
A11: 4 | B11: Оборачиваемость кредиторской задолженности в днях | C11: 0.15 | D11: Количество календарных дней в периоде/(Чистая выручка от реализации/Среднее значение кредиторской задолженности) | E11: 90 | J11: 372 | K11: =E11/J11*100 -> 24.19354839 | L11: 0.03629032258
A12: 5 | B12: Оборачиваемость дебиторской задолженности в днях | C12: 0.15 | D12: Количество календарных дней в периоде/(Чистая выручка от реализации/Среднее значение дебиторской задолженности) | E12: 90 | J12: 482 | K12: =E12/J12*100 -> 18.67219917 | L12: 0.02800829876
A13: 6 | B13: Коэффициент покрытия (платежеспособности) | C13: 0.2 | D13: Текущие активы/ (Обязательства – Долгосрочные обязательства) | E13: 1.2931 | J13: 1.6394 | K13: =+J13/E13*100 -> 126.7806047 | L13: 0.2535612095
A14: 7 | B14: Дивидендный выход | C14: 0.1 | D14: Дв = Дао / ЕPS, где:Дао — начисленный дивиденд на одну простую акцию (на основании документов бухгалтерского учета); ЕPS — доход на акцию, определяется по формуле:EPS = (Чп – ДИВприв) / Као, где:Чп — чистая прибыль отчетного периода, (строка 270 «Чистая прибыль (убыток) отчетного периода», графа 5 «Доходы (прибыль)», форма № 2 «Отчет о финансовых результатах»; ДИВприв — начисленные дивиденды по привилегированным акциям (на основании документов бухгалтерского учета); Као — общее число размещенных простых акций (строка 152 «простые», графа 9 «Итого» формы № 5 «Отчет о собственном капитале»). | E14: 0 | L14: 0
B15: Всего: | C15: 1 | L15: =SUM(L8:L14) -> 0.4823349477
B17: Генеральный директор АО "4-sonli montaj boshqarmasi"
B18: Начальник ПЭО
A20: Прогнозные (целевые) значения дополнительных ключевых показателей эффективности за 1кв. 2017 г.
A22: № | B22: Показатель | C22: Удельный вес | D22: Формула расчета | E22: Прогнозное (целевое) значение в целом за год | F22: В т.ч. | J22: факт за 1кв.2017 | K22: Процен тиспонения ИКЭ | L22: Удельный вес
F24: 1 квартал | G24: 2 квартал | H24: 3 квартал | I24: 4 квартал
A25: 1 | B25: 2 | C25: 3 | D25: 4 | E25: 5 | F25: 6 | G25: 7 | H25: 8 | I25: 9
A26: 1 | B26: Коэффициент износа основных средств | C26: 0.25 | D26: износ основных средств/ первоначальная стоимость основных средств | E26: 0.5 | F26: Рассчитывается только годовое значение | K26: =J26/E26*100 -> 0 | L26: =K26*C26/100 -> 0
A27: 2 | B27: Коэффициент обновления основных средств | C27: 0.25 | D27: Балансовая стоимость поступивших за период основных средств/Балансовая стоимость всех основных средств на конец периода | E27: 0.1 | K27: 0 | L27: 0
A28: 3 | B28: Производительность труда | C28: 0.25 | D28: Чистая выручка от реализации/Среднесписочная численность сотрудников | E28: 350988 | K28: 0 | L28: 0
A29: 4 | B29: Фондоотдача | C29: 0.25 | D29: Чистая выручка от реализации/Средняя стоимость основных средств за период | E29: 10 | F29: Рассчитывается только годовое значение | K29: 0 | L29: 0
A30: Всего: | C30: 100 | L30: =SUM(L26:L29) -> 0
B33: Руководитель
B34: Экономист

Sheet Лист3
